fUSD/lending_fUSD_20240328
["ID","MTS","AMOUNT","RATE_DAILY","PERIOD"]
[320831306,1711594238735,-157.032811,0.00053648,109]
[320831307,1711594238744,-208.0,0.0005366,30]
[320831308,1711594238753,-157.032811,0.00053748,110]
[320831309,1711594238762,-151.032811,0.00053848,111]
[320831310,1711594238771,-500.0,0.00053875,2]
[320831311,1711594238780,-408.9331,0.00053875,2]
[320831312,1711594238790,-191.5,0.0005389,120]
[320831313,1711594238799,-186.57,0.00053907,2]
[320831314,1711594238808,-151.032809,0.00053948,112]
[320831315,1711594238818,-1170.80037023,0.00053995,4]
[320831316,1711594238827,-330.5344,0.00053999,2]
[320831317,1711594238836,-310.20360999,0.00054,14]
[320831318,1711594238845,-169.17155032,0.00054,30]
[320831319,1711594238854,-1516.0,0.00054,120]
[320831320,1711594238863,-600.0,0.00054,55]
[320831321,1711594238872,-250.0,0.00054,120]
[320831322,1711594238881,-2194.0,0.00054,120]
[320831323,1711594238890,-5191.5614857,0.00054009,2]
[320831324,1711594238899,-935.42342723,0.00054044,4]
[320831325,1711594238908,-416.77832052,0.00054044,4]
[320831326,1711594238917,-2646.69252241,0.00054044,4]
[320831327,1711594238926,-2178.90975062,0.00054045,4]
[320831328,1711594238937,-416.47981365,0.00054045,4]
[320831329,1711594238947,-151.032809,0.00054048,113]
[320831330,1711594238956,-1000.0,0.00054052,2]
[320831331,1711594238965,-2500.0,0.00054055,2]
[320831332,1711594238975,-28.12266296,0.00054055,2]
[320831333,1711594239003,-971.87733704,0.00054055,2]
[320831334,1711594239012,-302.79443847,0.00054092,26]
[320831335,1711594239021,-1053.77691694,0.00054099,2]
[320831336,1711594239032,-1169.29771378,0.00054099,2]
[320831337,1711594239044,-15999.74638374,0.00054099,2]
[320831343,1711594240150,-818.14253745,0.00054099,2]
[320831344,1711594240162,-8515.80232216,0.00054099,2]
[320831345,1711594240386,-3874.25334895,0.00054099,2]
[320831346,1711594240401,-8384.49777698,0.00054099,2]
[320831347,1711594240411,-68320.7792,0.00054099,2]
[320831348,1711594240420,-310.46995722,0.00054109,2]
[320831349,1711594240429,-151.75004243,0.00054146,60]
[320831350,1711594240439,-185.60581802,0.00054146,2]
[320831351,1711594240449,-2146.75787887,0.00054146,31]
[320831352,1711594240458,-5000.0,0.00054146,3]
[320831353,1711594240467,-157.032809,0.00054148,114]
[320831354,1711594240476,-1387.66,0.00054151,120]
[320831355,1711594240485,-151.0,0.00054152,30]
[320831356,1711594240494,-229.821355,0.00054152,120]
[320831357,1711594240503,-151.0,0.00054152,120]
[320831358,1711594240512,-151.0,0.00054152,120]
[320831359,1711594240523,-178.387637,0.00054152,120]
[320831360,1711594240532,-151.0,0.00054152,120]
[320831361,1711594240541,-419.01737774,0.00054154,120]
[320831362,1711594240551,-500.0,0.00054154,120]
[320831363,1711594240560,-477.70721472,0.00054154,120]
[320831364,1711594240569,-152.120885,0.00054155,120]
[320831365,1711594240578,-151.0,0.00054155,120]
[320831366,1711594240587,-151.0,0.00054155,120]
[320831367,1711594240596,-146466.28538123,0.00054155,2]
[320831368,1711594240609,-17021.7809873,0.00054155,2]
[320831369,1711594240636,-68568.86855437,0.00054155,2]
[320831370,1711594240646,-8123.3299995,0.00054155,2]
[320831371,1711594240654,-157.679247,0.00054155,14]
[320831372,1711594240664,-191.5,0.00054192,120]
[320831373,1711594240673,-1402.18834978,0.00054197,2]
[320831374,1711594240683,-2358.53700034,0.00054198,4]
[320831375,1711594240693,-150.75,0.00054199,120]
[320831376,1711594240702,-150.75,0.00054199,120]
[320831377,1711594240711,-150.75,0.00054199,120]
[320831378,1711594240720,-189.30509037,0.00054199,2]
[320831379,1711594240729,-354.21,0.00054199,2]
[320831380,1711594240738,-354.21,0.00054199,2]
[320831381,1711594240747,-151.0,0.00054209,30]
[320831382,1711594240757,-210.272684,0.00054209,120]
[320831383,1711594240766,-151.0,0.00054209,120]
[320831384,1711594240776,-151.0,0.00054209,120]
[320831385,1711594240785,-162.304429,0.00054209,120]
[320831386,1711594240794,-151.0,0.00054209,120]
[320831387,1711594240804,-157250.21171499,0.00054209,2]
[320831413,1711594243413,-489.77,0.00054152,2]
[320831414,1711594243423,-118.59280673,0.00054155,2]
[320831415,1711594243699,-3038.43825857,0.00054155,2]
[320831416,1711594243709,-4282.05974914,0.00054209,2]
[320831419,1711594246235,-540.16040797,0.00045705,30]
[320831420,1711594246297,-755.162545,0.00045705,30]
[320831421,1711594246445,-1653.82413749,0.00045705,30]
[320831422,1711594246455,-187.067341,0.00054155,30]
[320831423,1711594246465,-29914.04719527,0.00054209,2]
[320831424,1711594246475,-6701.724403,0.00054209,2]
[320831425,1711594246487,-2604.5417498,0.00054209,2]
[320831426,1711594246496,-275.06,0.00054236,30]
[320831427,1711594246505,-150.75,0.00054236,120]
[320831428,1711594246515,-150.75,0.00054236,120]
[320831429,1711594246524,-150.75,0.00054236,120]
[320831430,1711594246534,-354.21,0.00054236,2]
[320831431,1711594246545,-173.90167696,0.00054243,2]
[320831432,1711594246554,-265.0,0.00054244,7]
[320831433,1711594246564,-2781.3358607,0.00054244,120]
[320831434,1711594246574,-256.69278013,0.00054244,120]
[320831435,1711594246583,-268.14558605,0.00054244,4]
[320831436,1711594246593,-1003.45647983,0.00054244,30]
[320831437,1711594246602,-237.03686566,0.00054244,2]
[320831438,1711594246611,-283.36667039,0.00054244,120]
[320831439,1711594246620,-5219.65513278,0.00054244,4]
[320831440,1711594246630,-2157.55961691,0.00054245,30]
[320831441,1711594246639,-2000.0,0.00054245,120]
[320831442,1711594246648,-500.0,0.00054246,120]
[320831443,1711594246657,-500.0,0.00054246,120]
[320831444,1711594246667,-500.0,0.00054246,120]
[320831445,1711594246676,-294.45858966,0.00054246,120]
[320831446,1711594246687,-503.36679063,0.00054246,120]
[320831447,1711594246707,-500.61440784,0.00054246,120]
[320831448,1711594246717,-501.78539962,0.00054246,120]
[320831449,1711594246727,-502.3884426,0.00054246,120]
[320831450,1711594246737,-502.66952816,0.00054246,120]
[320831451,1711594246747,-502.00841153,0.00054246,120]
[320831452,1711594246756,-502.44291324,0.00054246,120]
[320831453,1711594246765,-500.0,0.00054246,120]
[320831454,1711594246775,-503.72355211,0.00054246,120]
[320831455,1711594246784,-508.01071993,0.00054246,120]
[320831456,1711594246793,-500.0,0.00054246,120]
[320831457,1711594246803,-503.52710474,0.00054246,120]
[320831458,1711594246812,-500.0,0.00054246,120]
[320831459,1711594246821,-505.87192917,0.00054246,120]
[320831460,1711594246831,-504.48447864,0.00054246,120]
[320831461,1711594246840,-298.87299923,0.00054246,120]
[320831462,1711594246850,-621.85949724,0.00054246,120]
[320831463,1711594246859,-503.3755507,0.00054246,120]
[320831464,1711594246869,-183.40115617,0.00054246,120]
[320831465,1711594246879,-507.60398605,0.00054246,120]
[320831466,1711594246890,-503.18684153,0.00054246,120]
[320831467,1711594246902,-503.26699845,0.00054246,120]
[320831468,1711594246912,-507.09266203,0.00054246,120]
[320831469,1711594246922,-504.08512078,0.00054246,120]
[320831470,1711594246932,-501.35575469,0.00054246,120]
[320831471,1711594246943,-502.91713455,0.00054246,120]
[320831472,1711594246954,-501.33543139,0.00054246,120]
[320831473,1711594246964,-603.16884296,0.00054246,120]
[320831474,1711594246974,-505.33036925,0.00054246,120]
[320831475,1711594246984,-502.50347762,0.00054246,120]
[320831476,1711594246993,-500.0,0.00054246,120]
[320831477,1711594247004,-500.0,0.00054246,120]
[320831478,1711594247015,-508.48402839,0.00054246,120]
[320831479,1711594247025,-200.62461209,0.00054246,21]
[320831480,1711594247035,-502.38426531,0.00054246,120]
[320831481,1711594247046,-502.1970469,0.00054246,60]
[320831482,1711594247056,-503.15364317,0.00054246,120]
[320831483,1711594247066,-634.37478752,0.00054246,120]
[320831484,1711594247076,-500.0,0.00054246,120]
[320831485,1711594247086,-503.96297337,0.00054246,120]
[320831486,1711594247095,-504.15614384,0.00054246,120]
[320831487,1711594247105,-505.12959713,0.00054246,120]
[320831488,1711594247115,-501.44481501,0.00054246,120]
[320831489,1711594247129,-502.9509233,0.00054246,120]
[320831490,1711594247139,-504.51587485,0.00054246,120]
[320831491,1711594247150,-504.75302739,0.00054246,120]
[320831492,1711594247160,-502.17158652,0.00054246,120]
[320831493,1711594247170,-502.65996738,0.00054246,120]
[320831494,1711594247180,-505.73324205,0.00054246,120]
[320831495,1711594247192,-501.30441191,0.00054246,120]
[320831496,1711594247202,-216.24927416,0.00054246,120]
[320831497,1711594247213,-500.0,0.00054246,120]
[320831498,1711594247223,-502.3522339,0.00054246,120]
[320831499,1711594247234,-583.06594582,0.00054246,120]
[320831500,1711594247245,-504.11156177,0.00054246,120]
[320831501,1711594247255,-502.6417538,0.00054246,120]
[320831502,1711594247266,-502.52236805,0.00054246,120]
[320831503,1711594247277,-500.0,0.00054246,120]
[320831504,1711594247290,-505.66849517,0.00054246,120]
[320831505,1711594247301,-500.0,0.00054246,120]
[320831506,1711594247312,-503.12066887,0.00054246,120]
[320831507,1711594247324,-502.22093104,0.00054246,120]
[320831508,1711594247335,-500.0,0.00054246,120]
[320831509,1711594247345,-503.57137973,0.00054246,120]
[320831510,1711594247355,-500.0,0.00054246,120]
[320831511,1711594247366,-513.46622408,0.00054246,120]
[320831512,1711594247375,-504.10628824,0.00054246,120]
[320831513,1711594247385,-503.06703947,0.00054246,120]
[320831514,1711594247398,-502.41015896,0.00054246,120]
[320831515,1711594247409,-504.4787654,0.00054246,120]
[320831516,1711594247419,-180.79400916,0.00054246,120]
[320831517,1711594247430,-519.03715628,0.00054246,120]
[320831518,1711594247441,-520.77409425,0.00054246,120]
[320831519,1711594247452,-504.96903325,0.00054246,120]
[320831520,1711594247461,-502.26629205,0.00054246,120]
[320831521,1711594247471,-500.0,0.00054246,120]
[320831522,1711594247481,-504.59642627,0.00054246,120]
[320831523,1711594247490,-504.15811803,0.00054246,120]
[320831524,1711594247500,-486.28612242,0.00054246,120]
[320831525,1711594247538,-1490.49833242,0.000489,2]
[320831526,1711594247565,-277.66126758,0.000489,2]
[320831527,1711594247575,-13.71387758,0.00054246,120]
[320831528,1711594247584,-52.95267062,0.00054246,120]
[320831532,1711594578962,-150.12541514,0.000239,2]
[320831533,1711594578994,-1308.31178552,0.00023999,2]
[320831534,1711594579024,-224.8705565,0.00024,2]
[320831571,1711595432617,-1691.98240077,0.00040575,15]
[320831572,1711595432673,-5337.92204485,0.00040575,15]
[320831573,1711595432683,-179.48126473,0.000415,2]
[320831574,1711595432692,-170.37698349,0.000416,2]
[320831575,1711595432702,-503.42787,0.00042,2]
[320831576,1711595432711,-260.88080555,0.00042,2]
[320831577,1711595432721,-350.0,0.00042,2]
[320831578,1711595432735,-3927.45993727,0.00044,2]
[320831579,1711595432744,-398.85,0.00045,10]
[320831580,1711595432754,-179.48126471,0.00047158,2]
[320831581,1711595432763,-1059.0,0.000487,117]
[320831582,1711595432774,-742.892,0.00049889,2]
[320831583,1711595432783,-4851.829,0.00049889,2]
[320831584,1711595432793,-5756.366,0.00049889,2]
[320831585,1711595432812,-17568.796,0.00049889,2]
[320831586,1711595432823,-2481.239,0.00049889,2]
[320831587,1711595432833,-343.07,0.00050184,2]
[320831588,1711595432843,-155.0,0.0005035,120]
[320831589,1711595432853,-1585.25140496,0.0005035,20]
[320831590,1711595432864,-250.0,0.00051055,120]
[320831591,1711595432874,-183.0,0.00051068,2]
[320831592,1711595432884,-167.43,0.00051072,120]
[320831593,1711595432894,-250.0,0.00051081,112]
[320831594,1711595432904,-158.17467377,0.00051086,60]
[320831595,1711595432923,-500.0,0.00051095,2]
[320831596,1711595432933,-1243.59,0.00051122,120]
[320831597,1711595432943,-1320.44,0.00051139,2]
[320831598,1711595432953,-23900.0,0.00051153,2]
[320831599,1711595432962,-200.0,0.00051155,2]
[320831600,1711595432973,-500.0,0.00051178,2]
[320831601,1711595432982,-150.0,0.00051193,2]
[320831602,1711595432993,-158.17467377,0.00051215,60]
[320831603,1711595433002,-154.72621041,0.00051238,60]
[320831604,1711595433012,-407.9976629,0.0005141,4]
[320831605,1711595433023,-158.37,0.00051502,2]
[320831607,1711595433033,-152.78866179,0.00051629,60]
[320831609,1711595433043,-158.37,0.00051643,2]
[320831611,1711595433053,-158.37,0.00051784,2]
[320831614,1711595433063,-250.0,0.0005183,120]
[320831615,1711595433073,-848.36,0.00051841,120]
[320831618,1711595433083,-500.0,0.00051843,2]
[320831620,1711595433093,-241.96,0.00051869,2]
[320831622,1711595433104,-158.37,0.00051926,2]
[320831624,1711595433114,-1000.0,0.00052055,30]
[320831626,1711595433124,-158.17467377,0.0005206,60]
[320831629,1711595433135,-158.37,0.00052067,2]
[320831631,1711595433145,-157.032811,0.00052098,106]
[320831633,1711595433155,-151.032811,0.00052198,107]
[320831635,1711595433165,-158.37,0.00052208,2]
[320831637,1711595433175,-152.33,0.0005223,2]
[320831639,1711595433186,-152.33,0.00052295,2]
[320831641,1711595433197,-157.032811,0.00052298,108]
[320831643,1711595433206,-158.37,0.00052349,2]
[320831644,1711595433216,-152.33,0.0005236,2]
[320831645,1711595433226,-151.032811,0.00052398,109]
[320831646,1711595433236,-152.33,0.00052426,2]
[320831647,1711595433249,-343.07,0.00052448,2]
[320831648,1711595433262,-158.37,0.00052491,2]
[320831649,1711595433273,-152.33,0.00052491,2]
[320831650,1711595433283,-157.032811,0.00052498,110]
[320831651,1711595433293,-171.01,0.00052554,2]
[320831652,1711595433303,-151.032811,0.00052598,111]
[320831653,1711595433313,-158.37,0.00052632,2]
[320831654,1711595433323,-157.032811,0.00052698,102]
[320831655,1711595433332,-400.0,0.000527,19]
[320831656,1711595433342,-310.35,0.00052755,120]
[320831657,1711595433352,-158.37,0.00052773,2]
[320831658,1711595433362,-151.032811,0.00052798,103]
[320831659,1711595433371,-900.0,0.000528,19]
[320831660,1711595433381,-161.57866357,0.00052811,60]
[320831661,1711595433391,-282.6081426,0.00052815,24]
[320831662,1711595433401,-5596.52189873,0.00052815,2]
[320831663,1711595433411,-188.88709897,0.00052815,2]
[320831664,1711595433420,-179.48126471,0.00052815,2]
[320831665,1711595433430,-1541.35474629,0.00052815,2]
[320831666,1711595433440,-151.7500426,0.00052815,55]
[320831667,1711595433451,-310.46995722,0.00052815,2]
[320831668,1711595433460,-183.54934751,0.00052815,120]
[320831669,1711595433470,-1000.0,0.00052817,120]
[320831670,1711595433479,-239.0,0.0005287,15]
[320831671,1711595433489,-150.5,0.0005287,15]
[320831672,1711595433500,-169.0,0.0005287,15]
[320831673,1711595433510,-239.0,0.0005288,15]
[320831674,1711595433523,-150.5,0.0005288,15]
[320831675,1711595433535,-169.0,0.0005288,15]
[320831676,1711595433545,-154.38,0.0005289,2]
[320831677,1711595433554,-154.38,0.0005289,2]
[320831678,1711595433564,-154.38,0.0005289,2]
[320831679,1711595433573,-154.38,0.0005289,2]
[320831680,1711595433583,-189.30509037,0.0005289,2]
[320831681,1711595433592,-239.0,0.0005289,15]
[320831682,1711595433602,-150.5,0.0005289,15]
[320831683,1711595433612,-169.0,0.0005289,15]
[320831684,1711595433621,-1550.35228104,0.00052897,2]
[320831685,1711595433631,-157.032811,0.00052898,104]
[320831686,1711595433641,-154.99999999,0.00052899,120]
[320831687,1711595433651,-1300.0,0.000529,19]
[320831688,1711595433660,-206236.5445241,0.000529,20]
[320831689,1711595433675,-2100.70000025,0.000529,20]
[320831690,1711595433688,-1248.31282495,0.000529,20]
[320831691,1711595433701,-550.0,0.000529,20]
[320831692,1711595433713,-1534.72616482,0.000529,20]
[320831693,1711595433746,-1390.89940899,0.000529,20]
[320831694,1711595433759,-552.08555548,0.000529,20]
[320831724,1711595438315,-2430.35550896,0.000529,20]
[320831727,1711595438379,-1010.62714142,0.000529,20]
[320831728,1711595438663,-3622.78453737,0.000529,20]
[320831729,1711595438831,-3096.96764864,0.000529,20]
[320831910,1711595440571,-6036.13830467,0.0004572,30]
[320831911,1711595440582,-8636.51843781,0.000529,20]
[320831912,1711595440632,-418834.05716991,0.000529,20]
[320832036,1711595444270,-3488.05945172,0.000529,20]
[320832050,1711595465814,285.97161265,0.00024,2]
[320832051,1711595475212,265.18381961,0.0002328,2]
[320832052,1711595493678,155.0,0.00024,2]
[320832053,1711595494949,862.3929873,0.00024,2]
[320832054,1711595507771,160.48399293,0.0002328,2]
[320832055,1711595513179,862.3929873,0.0002328,2]
[320832056,1711595526862,862.3929873,0.0002328,2]
[320832057,1711595544866,862.3929873,0.0002328,2]
[320832058,1711595564877,862.3929873,0.0002328,2]
[320832059,1711595590886,862.3929873,0.0002328,2]
[320832060,1711595612890,862.3929873,0.0002328,2]
[320832061,1711595628895,862.3929873,0.0002328,2]
[320832062,1711595646900,862.3929873,0.0002328,2]
[320832063,1711595664891,731.56600591,0.0002328,2]
[320832066,1711596633054,-317.60011186,0.00037574,2]
[320832067,1711596633064,-252.06229132,0.00037575,4]
[320832068,1711596633074,-3499.12033086,0.00039596,4]
[320832069,1711596633173,-39.97511285,0.00039596,4]
[320832070,1711596633183,-159.16017409,0.00039597,2]
[320832071,1711596633196,-238.27539359,0.0004,15]
[320832072,1711596633206,-201.24946353,0.00040376,2]
[320832073,1711596633216,-406.19,0.00047044,2]
[320832074,1711596633225,-493.48,0.00048267,2]
[320832075,1711596633235,-236.07550892,0.00048299,2]
[320832076,1711596633254,-263.92449108,0.00048299,2]
[320832077,1711596633264,-562.66,0.0004836,120]
[320832078,1711596633274,-250.0,0.00048533,120]
[320832079,1711596633284,-150.0,0.00048553,120]
[320832080,1711596633293,-250.0,0.00048667,112]
[320832081,1711596633303,-150.0,0.00048795,5]
[320832082,1711596633313,-1003.45648083,0.00048796,2]
[320832083,1711596633323,-254.03947659,0.00048796,4]
[320832084,1711596633332,-1956.97196452,0.00048796,2]
[320832085,1711596633348,-627.68,0.00048796,2]
[320832130,1711596637642,-173.34803548,0.00048796,2]
[320832131,1711596637652,-155.52244694,0.00048797,4]
[320832132,1711596637661,-70.85317933,0.00048797,4]
[320832133,1711596637680,-577.67449144,0.00048797,4]
[320832134,1711596637689,-992.08550856,0.00048798,10]
[320832135,1711596637736,-49593.41100768,0.00048798,10]
[320832136,1711596637745,-499.99,0.00048798,2]
[320832137,1711596637757,-180.45,0.00048962,15]
[320832138,1711596637766,-506.13,0.00048962,2]
[320832139,1711596637776,-250.0,0.00049056,120]
[320832140,1711596637785,-183.0,0.00049179,2]
[320832141,1711596637794,-1690.98,0.00049254,2]
[320832142,1711596637804,-406.19,0.00049308,2]
[320832143,1711596637813,-157.032812,0.00049698,75]
[320832144,1711596637823,-1059.0,0.00049757,117]
[320832145,1711596637832,-1978.7159,0.00049789,30]
[320832146,1711596637841,-150.99,0.00049789,10]
[320832147,1711596637850,-157.032812,0.00049798,76]
[320832148,1711596637860,-275.06,0.0004989,30]
[320832149,1711596637869,-157.032812,0.00049898,77]
[320832150,1711596637879,-36703.47184505,0.000499,20]
[320832206,1711596639559,-1815.34528271,0.000499,20]
[320832207,1711596639730,-499.99,0.00049308,2]
[320832208,1711596639739,-1000.00416667,0.000499,20]
[320832256,1711597832575,-300.0,0.000398,14]
[320832257,1711597832585,-600.0,0.000399,14]
[320832258,1711597832595,-263.76759976,0.00040476,12]
[320832259,1711597832604,-122.99209803,0.00040476,2]
[320832286,1711597837900,-65.89500093,0.00040476,2]
[320832287,1711597838026,-1532.53515769,0.00040476,2]
[320832289,1711597838073,-315.86594807,0.00040476,2]
[320832291,1711597838082,-182.64,0.0004049,2]
[320832292,1711597838092,-173.90167702,0.00040497,2]
[320832293,1711597838102,-1745.5182739,0.000405,30]
[320832296,1711597838131,-103885.19270887,0.000405,30]
[320832330,1711597839696,-726.99445394,0.000405,30]
[320832385,1711597846168,-99142.4736346,0.000405,30]
[320832386,1711598027209,152.78193764,0.00040576,35]
[320832391,1711598058976,2270.7793296,0.0002,2]
[320832392,1711598073568,682.11455073,0.00040576,120]
[320832398,1711598821412,-150.0,0.00029999,2]
[320832399,1711598821435,-24850.0,0.0003,2]
[320832419,1711599031960,-150.0,0.00029999,2]
[320832420,1711599031969,-7850.0,0.0003,2]
[320832421,1711599031981,-1038.16067943,0.0003,2]
[320832422,1711599031992,-3239.1206751,0.0003,2]
[320832423,1711599032072,-520.77447,0.0003,2]
[320832424,1711599032084,-293.41697588,0.0003,2]
[320832464,1711599037870,-3057.98381,0.0003,2]
[320832481,1711599038259,-4221.22654567,0.0003,2]
[320832511,1711599039936,-874.03805936,0.0003,2]
[320832543,1711599042911,-2152.49710779,0.0003,2]
[320832545,1711599042924,-2227.27877186,0.0003,2]
[320832547,1711599042933,-1377.90190895,0.0003,4]
[320832549,1711599042943,-728.87863177,0.00030432,25]
[320832551,1711599042952,-210.0,0.00032999,3]
[320832553,1711599042961,-365.57,0.00037226,2]
[320832555,1711599042970,-250.0,0.00038855,2]
[320832557,1711599042980,-500.0,0.00038883,2]
[320832559,1711599042989,-408.28,0.00038943,2]
[320832561,1711599042998,-500.0,0.00038945,2]
[320832563,1711599043007,-200.0,0.0003896,2]
[320832565,1711599043016,-169.17,0.00038965,15]
[320832567,1711599043025,-945.51,0.00038965,2]
[320832568,1711599043034,-150.89,0.00038969,2]
[320832571,1711599043044,-200.0,0.00038975,2]
[320832573,1711599043054,-1272.95377006,0.00039016,10]
[320832575,1711599043064,-23900.0,0.00039018,2]
[320832577,1711599043073,-1000.0,0.00039023,2]
[320832579,1711599043083,-468.88,0.00039045,2]
[320832580,1711599043092,-250.0,0.00039066,2]
[320832582,1711599043101,-499.99,0.00039066,2]
[320832584,1711599043110,-1125.96,0.00039088,2]
[320832586,1711599043119,-171.01,0.00039142,2]
[320832588,1711599043129,-2751.0,0.00039143,120]
[320832589,1711599043138,-250.0,0.00039208,112]
[320832591,1711599043147,-29488.99379473,0.00039231,2]
[320832594,1711599043168,-958.60389778,0.00039231,2]
[320832597,1711599043179,-579.654998,0.00039231,2]
[320832614,1711599043355,-4730.64730949,0.00039231,2]
[320832616,1711599043363,-151.48,0.00039278,2]
[320832618,1711599043371,-472.46,0.00039288,2]
[320832620,1711599043379,-151.48,0.00039424,2]
[320832621,1711599043387,-365.57,0.00039489,2]
[320832623,1711599043395,-404.595,0.00039503,2]
[320832625,1711599043404,-706.96,0.00039566,2]
[320832627,1711599043412,-1928.01,0.00039566,2]
[320832629,1711599043420,-151.48,0.00039571,2]
[320832631,1711599043428,-151.48,0.00039717,2]
[320832634,1711599043436,-600.0,0.000398,14]
[320832637,1711599043444,-151.48,0.00039863,2]
[320832638,1711599043452,-1300.0,0.000399,14]
[320832640,1711599043460,-151.48,0.00040009,2]
[320832642,1711599043468,-829.53067,0.0004009,2]
[320832644,1711599043476,-151.48,0.00040155,2]
[320832646,1711599043485,-150.0,0.00040185,2]
[320832648,1711599043493,-151.48,0.00040302,2]
[320832649,1711599043502,-4894.59534231,0.000404,14]
[320832651,1711599043509,-169.85208898,0.000404,2]
[320832653,1711599043517,-239.70888861,0.000404,14]
[320832655,1711599043526,-154.9944457,0.000404,9]
[320832657,1711599043534,-1379.28164193,0.000404,2]
[320832659,1711599043542,-151.75004243,0.000404,8]
[320832661,1711599043553,-188.88709896,0.000404,2]
[320832663,1711599043561,-315.86594803,0.000404,2]
[320832664,1711599043569,-246.1830931,0.000404,12]
[320832666,1711599043578,-157.032812,0.00040438,33]
[320832668,1711599043586,-151.48,0.00040448,2]
[320832670,1711599043594,-157.032812,0.00040448,34]
[320832672,1711599043602,-157.032812,0.00040458,35]
[320832674,1711599043611,-157.032812,0.00040468,36]
[320832675,1711599043620,-101.76934514,0.00040478,37]
[320832677,1711599043631,-55.26346686,0.00040478,37]
[320832679,1711599043638,-157.032812,0.00040488,38]
[320832681,1711599043645,-192.9778976,0.00040494,2]
[320832682,1711599043653,-454.59527129,0.00040496,30]
[320832684,1711599043665,-444.24779552,0.00040496,30]
[320832689,1711599043702,-110.38162065,0.00040496,30]
[320832691,1711599043711,-157.032812,0.00040498,39]
[320832693,1711599043721,-1739.9375551,0.00040499,30]
[320832695,1711599043730,-71.37682389,0.000405,30]
[320832735,1711599047667,-15896.62214063,0.000405,30]
[320832736,1711599293788,-2200.81580875,0.0003,4]
[320832764,1711599604715,250.0,0.00027,3]
[320832765,1711599841641,-300.0,0.00029,3]
[320832779,1711600232122,-150.0,0.00029999,2]
[320832780,1711600232132,-2988.08103004,0.0003,2]
[320832781,1711600232189,-2051.08413409,0.0003,2]
[320832782,1711600232358,-962.72734144,0.0003,2]
[320832783,1711600232371,-307.47652922,0.0003,2]
[320832784,1711600232383,-407.6275856,0.0003,2]
[320832785,1711600232416,-5819.75741838,0.0003,2]
[320832787,1711600232429,-285.813,0.0003,2]
[320832789,1711600232441,-2307.08074563,0.0003,2]
[320832790,1711600232450,-309.28210626,0.00030375,25]
[320832791,1711600232460,-350.0,0.00031,3]
[320832792,1711600232470,-400.0,0.00033,3]
[320832793,1711600232479,-450.0,0.00035,3]
[320832794,1711600232489,-347.3,0.00036885,2]
[320832795,1711600232498,-500.0,0.00037,3]
[320832796,1711600232507,-150.82,0.00038647,2]
[320832797,1711600232517,-250.0,0.00038768,112]
[320832798,1711600232526,-1595.22,0.0003877,120]
[320832799,1711600232535,-250.0,0.00038779,2]
[320832800,1711600232546,-1928.01,0.00038779,2]
[320832801,1711600232555,-749.62,0.0003878,2]
[320832802,1711600232564,-472.46,0.00038793,2]
[320832803,1711600232573,-4730.65,0.00038823,2]
[320832804,1711600232582,-158.59,0.00038831,15]
[320832805,1711600232594,-508.57,0.00038855,2]
[320832806,1711600232603,-23900.0,0.00038919,2]
[320832807,1711600232613,-3596.51513684,0.00038958,2]
[320832808,1711600232623,-800.0,0.00038969,2]
[320832809,1711600232632,-550.0,0.00039,3]
[320832810,1711600232641,-401.03,0.00039142,2]
[320832811,1711600232651,-347.3,0.00039149,2]
[320832812,1711600232661,-151.48,0.00039192,2]
[320832813,1711600232670,-151.48,0.00039338,2]
[320832814,1711600232680,-151.48,0.00039484,2]
[320832815,1711600232690,-163.89,0.00039568,2]